bitfinex-derivatives/quotes_SOLF0:USTF0_20240818
["timestamp","ask_amount","ask_price","bid_price","bid_amount"]
[1724020597591,3.4413,145.26,145.23,10.8318]
[1724020597790,3.49137373,145.26,145.24,0.04683091]
[1724020600089,3.4415,145.25,145.24,0.04683091]
[1724020604997,3.49147373,145.26,145.24,0.04683091]
[1724020609895,0.05007373,145.26,145.24,0.04683091]
[1724020610093,0.05007373,145.26,145.25,18.5]
[1724020610298,4.18,145.33,145.25,21.9413]
[1724020610499,3.4407,145.29,145.25,21.9413]
[1724020611592,0.04753629,145.28,145.26,0.05209565]
[1724020612198,18.5,145.32,145.26,0.05209565]
[1724020612394,3.49026341,145.28,145.26,0.05209565]
[1724020614195,18.54936341,145.28,145.21,2.6118]
[1724020615401,3.4414,145.26,145.23,0.04456051]
[1724020616097,18.54936341,145.28,145.23,0.04456051]
[1724020617199,18.5,145.26,145.23,0.04456051]
[1724020617701,4.18,145.25,145.23,0.04456051]
[1724020618003,3.4417,145.24,145.23,0.04456051]
[1724020619399,3.49102163,145.25,145.23,0.04456051]
[1724020619603,0.04942163,145.25,145.23,0.04456051]
[1724020621701,3.49102163,145.25,145.23,0.04456051]
[1724020622709,0.04942163,145.25,145.23,0.04456051]
[1724020623504,3.49092163,145.25,145.23,0.04456051]
[1724020626502,0.04942163,145.25,145.23,0.04456051]
[1724020626700,3.8663,145.34,145.26,3.4411]
[1724020626900,3.44,145.32,145.27,22.01037592]
[1724020627107,3.8663,145.34,145.27,18.5]
[1724020627412,3.8663,145.34,145.27,21.9409]
[1724020627597,3.4402,145.31,145.27,25.40235264]
[1724020627798,3.4402,145.31,145.29,0.05118825]
[1724020629011,3.4403,145.3,145.29,0.05118825]
[1724020631709,3.4401,145.31,145.29,0.05118825]
[1724020634308,3.49020084,145.32,145.29,0.05118825]
[1724020634514,0.05030084,145.32,145.29,18.55118825]
[1724020635209,3.49030084,145.32,145.29,21.99158825]
[1724020635912,3.4401,145.31,145.29,21.99158825]
[1724020636915,3.4401,145.31,145.29,18.55118825]
[1724020637108,3.4403,145.3,145.29,0.05118825]
[1724020637713,3.4401,145.31,145.29,0.05118825]
[1724020638012,0.05030084,145.32,145.29,0.05118825]
[1724020638817,3.4403,145.3,145.29,0.05118825]
[1724020645518,18.55030084,145.32,145.23,4.18]
[1724020645921,3.4414,145.26,145.23,4.18]
[1724020646117,4.18,145.31,145.22,24.4709]
[1724020646317,18.5,145.3,145.21,3.4423]
[1724020646519,3.4417,145.25,145.24,0.04470301]
[1724020648711,0.04603977,145.27,145.18,3.9181]
[1724020648712,18.5,145.26,145.18,2.5933]
[1724020648911,18.5,145.24,145.15,4.18]
[1724020649122,4.70090095,145.29,145.14,19.8127]
[1724020649123,18.5,145.22,145.14,19.8127]
[1724020649317,22.68,145.22,145.14,1.3127]
[1724020649516,3.4433,145.18,145.14,1.3127]
[1724020649720,22.68,145.22,145.14,1.3127]
[1724020650024,0.04970215,145.17,145.15,0.04368909]
[1724020650228,22.68,145.22,145.15,0.04368909]
[1724020650524,0.04697576,145.17,145.15,0.04368909]
[1724020650727,0.04463063,145.17,145.15,0.04368909]
[1724020655918,3.48803063,145.17,145.15,0.04368909]
[1724020660429,3.48803063,145.17,145.15,3.48738909]
[1724020660430,0.04463063,145.17,145.15,3.48738909]
[1724020660828,0.04463063,145.17,145.16,3.4436]
[1724020661221,2.6073,145.25,145.16,21.97557064]
[1724020661430,3.4424,145.22,145.18,21.9429]
[1724020661632,2.6073,145.25,145.18,25.3420315]
[1724020661830,3.4421,145.23,145.18,21.8991315]
[1724020662133,2.6073,145.25,145.18,18.5]
[1724020662524,3.4950143,145.23,145.2,0.04401387]
[1724020662926,0.0528143,145.23,145.2,0.04401387]
[1724020664030,3.4423,145.22,145.2,0.04401387]
[1724020665833,3.4424,145.21,145.2,0.04401387]
[1724020666527,0.0528143,145.23,145.14,18.5]
[1724020666726,18.5,145.24,145.14,18.5]
[1724020667033,3.4428,145.2,145.16,3.4435]
[1724020667627,0.04740675,145.19,145.17,0.04830283]
[1724020667830,3.49030675,145.19,145.17,0.04830283]
[1724020670936,3.4431,145.18,145.17,0.04830283]
[1724020671134,0.04740675,145.19,145.17,0.04830283]
[1724020672837,0.04740675,145.19,145.17,3.49150283]
[1724020673833,0.04740675,145.19,145.17,0.04830283]
[1724020674327,3.49030675,145.19,145.17,0.04830283]
[1724020674534,0.04740675,145.19,145.17,0.04830283]
[1724020677725,0.04740675,145.19,145.17,3.49170283]
[1724020677933,0.04740675,145.19,145.17,0.04830283]
[1724020679538,3.49030675,145.19,145.17,0.04830283]
[1724020681437,3.49030675,145.19,145.17,3.49160283]
[1724020681833,0.04740675,145.19,145.17,0.04830283]
[1724020682834,3.49040675,145.19,145.17,0.04830283]
[1724020684343,3.4431,145.18,145.17,0.04830283]
[1724020688342,3.49050675,145.19,145.17,0.04830283]
[1724020696351,0.04740675,145.19,145.17,3.49170283]
[1724020696651,0.04740675,145.19,145.17,18.56830283]
[1724020696953,0.04740675,145.19,145.18,3.4431]
[1724020698450,22.7,145.26,145.17,18.56830283]
[1724020698451,4.18,145.26,145.17,18.56830283]
[1724020698650,4.18,145.26,145.2,18.52]
[1724020698953,3.4419,145.24,145.21,3.4423]
[1724020699656,3.49446332,145.24,145.21,3.49143182]
[1724020700952,3.442,145.23,145.21,0.04913182]
[1724020701155,0.05256332,145.24,145.21,0.04913182]
[1724020701659,3.4422,145.22,145.21,0.04913182]
[1724020704656,3.442,145.23,145.21,0.04913182]
[1724020704857,0.05256332,145.24,145.21,0.04913182]
[1724020705558,0.05256332,145.24,145.21,3.49143182]
[1724020706462,3.4421,145.23,145.21,0.04913182]
[1724020706669,0.05256332,145.24,145.21,0.04913182]
[1724020707171,3.49436332,145.24,145.21,0.04913182]
[1724020707959,3.442,145.23,145.21,0.04913182]
[1724020708565,3.4422,145.22,145.21,0.04913182]
[1724020710469,3.4421,145.23,145.21,0.04913182]
[1724020717473,3.4419,145.23,145.21,0.04913182]
[1724020718469,0.05256332,145.24,145.21,0.04913182]
[1724020719777,3.4421,145.23,145.21,0.04913182]
[1724020720169,0.05256332,145.24,145.22,7.4]
[1724020720375,0.05256332,145.24,145.23,7.4]
[1724020726379,4.18,145.3,145.23,7.4]
[1724020726576,4.18,145.32,145.27,7.4]
[1724020727179,3.4406,145.29,145.27,7.4]
[1724020727584,3.4839801,145.29,145.27,7.44358262]
[1724020728180,3.4839801,145.29,145.27,0.04358262]
[1724020728487,3.4408,145.28,145.27,0.04358262]
[1724020730582,3.4839801,145.29,145.27,0.04358262]
[1724020732079,0.0433801,145.29,145.27,3.48458262]
[1724020732280,0.0433801,145.29,145.28,7.4]
[1724020732889,12.9186,145.35,145.28,10.8408]
[1724020733084,12.9186,145.35,145.29,7.4]
[1724020733583,4.18,145.35,145.31,7.4]
[1724020733784,5.5245,145.37,145.31,7.4]
[1724020733984,0.05107246,145.35,145.33,0.05224615]
[1724020737384,0.05107246,145.35,145.33,6.90891038]
[1724020737790,0.05107246,145.35,145.33,3.46941038]
[1724020737991,3.49017246,145.35,145.33,0.05224615]
[1724020740494,0.05107246,145.35,145.33,0.05224615]
[1724020741892,3.49027246,145.35,145.33,0.05224615]
[1724020742597,0.05107246,145.35,145.33,3.49184615]
[1724020742785,0.05107246,145.35,145.33,6.91703087]
[1724020743484,0.05107246,145.35,145.33,3.47743087]
[1724020743684,0.05107246,145.35,145.33,0.05224615]
[1724020744894,3.4393,145.34,145.33,0.05224615]
[1724020751301,0.05107246,145.35,145.33,7.45224615]
[1724020752399,3.49027246,145.35,145.33,7.45224615]
[1724020753408,7.45107246,145.35,145.27,4.16]
[1724020753700,7.4,145.34,145.28,7.4]
[1724020753895,3.4405,145.3,145.28,7.4]
[1724020754996,3.48392387,145.3,145.28,7.44400919]
[1724020756897,3.4405,145.29,145.28,7.44400919]
[1724020757099,0.04342387,145.3,145.22,3.833]
[1724020757403,3.4413,145.26,145.23,15.0018]
[1724020758005,3.4413,145.26,145.23,11.56]
[1724020758304,3.4413,145.26,145.23,7.4436332]
[1724020758305,3.49316419,145.26,145.23,7.4436332]
[1724020759802,3.49316419,145.26,145.23,10.8855332]
[1724020760602,0.05186419,145.26,145.25,7.4]
[1724020761303,0.05186419,145.26,145.25,10.8415]
[1724020763198,3.49306419,145.26,145.25,7.4]
[1724020763400,3.49306419,145.26,145.23,7.4436332]
[1724020763703,3.49306419,145.26,145.24,6.95444774]
[1724020764608,0.05186419,145.26,145.24,6.95444774]
[1724020770510,3.49326419,145.26,145.23,3.4855332]
[1724020770706,3.49326419,145.26,145.23,10.8855332]
[1724020771511,0.05186419,145.26,145.24,3.4416]
[1724020771712,0.05186419,145.26,145.24,10.8416]
[1724020772212,3.49316419,145.26,145.24,7.4]
[1724020772809,27.5062,145.4,145.25,7.4]
[1724020773015,12.8403,145.33,145.26,7.4]
[1724020773212,7.4,145.31,145.23,3.4418]
[1724020773409,7.4,145.31,145.23,10.8418]
[1724020773611,7.4,145.31,145.24,3.45907073]
[1724020773919,3.4411,145.27,145.26,0.04758731]
[1724020776914,3.4415,145.25,145.22,8.7519]
[1724020777209,7.4,145.29,145.22,8.7519]
[1724020777419,3.4414,145.26,145.23,7.4]
[1724020778008,3.48492788,145.26,145.23,7.44566661]
[1724020778210,3.4415,145.25,145.23,7.44566661]
[1724020780113,0.04352788,145.26,145.24,7.4]
[1724020780320,0.04352788,145.26,145.24,10.8934844]
[1724020782916,0.04352788,145.26,145.24,14.3350844]
[1724020783119,0.04352788,145.26,145.24,10.8934844]
[1724020783723,0.04352788,145.26,145.25,3.4415]
[1724020786025,1.2583,145.32,145.24,3.4934844]
[1724020786221,7.4,145.3,145.24,10.8934844]
[1724020786422,7.4,145.3,145.24,10.8416]
[1724020786423,3.4411,145.27,145.24,10.8416]
[1724020787015,3.48779318,145.27,145.24,14.40505113]
[1724020788916,0.04669318,145.27,145.24,0.04887335]
[1724020789623,3.4414,145.26,145.24,0.04887335]
[1724020790529,3.4415,145.25,145.24,0.04887335]
[1724020793130,0.04669318,145.27,145.24,0.04887335]
[1724020794221,3.4412,145.26,145.24,0.04887335]
[1724020794429,0.04669318,145.27,145.24,0.04887335]
[1724020795323,3.4415,145.25,145.24,0.04887335]
[1724020796433,7.4,145.25,145.19,11.56]
[1724020796729,7.4,145.25,145.19,7.4]
[1724020796922,1.3223,145.26,145.19,7.4]
[1724020797226,8.7223,145.26,145.19,7.4]
[1724020797426,3.4422,145.22,145.21,0.05064602]
[1724020803232,0.04710333,145.24,145.21,0.05064602]
[1724020804034,3.4422,145.22,145.21,0.05064602]
[1724020806147,3.443,145.19,145.16,10.8435]
[1724020806734,3.443,145.19,145.16,14.35367098]
[1724020807333,3.49022691,145.19,145.16,14.40497784]
[1724020808334,3.4432,145.18,145.16,14.40497784]
[1724020809137,3.4432,145.18,145.16,0.05130686]
[1724020811436,3.49022691,145.19,145.16,10.89490686]
[1724020811637,0.04722691,145.19,145.16,7.45130686]
[1724020811939,0.04722691,145.19,145.18,7.4]
[1724020812342,1.2311,145.27,145.18,7.4]
[1724020812343,5.4823,145.26,145.18,7.4]
[1724020812535,5.4823,145.26,145.21,7.4]
[1724020813040,3.4422,145.23,145.21,7.4]
[1724020813435,3.4933668,145.23,145.21,7.44943455]
[1724020813633,3.4933668,145.23,145.21,0.04943455]
[1724020813940,3.4422,145.22,145.21,0.04943455]
[1724020816337,0.0511668,145.23,145.21,0.04943455]
[1724020816539,0.0511668,145.23,145.21,7.44943455]
[1724020817739,0.0511668,145.23,145.22,3.4422]
[1724020820542,0.0511668,145.23,145.21,10.89173455]
[1724020820846,0.0511668,145.23,145.21,3.49173455]
[1724020821040,0.0511668,145.23,145.22,7.4]
[1724020824343,0.0511668,145.23,145.22,10.8422]
[1724020828650,0.0511668,145.23,145.22,7.4]
[1724020832150,0.0511668,145.23,145.22,10.8422]
[1724020832849,3.4930668,145.23,145.21,0.04943455]
[1724020833053,3.4930668,145.23,145.21,7.44943455]
[1724020835557,3.4930668,145.23,145.21,0.04943455]
[1724020839362,0.0511668,145.23,145.21,0.04943455]
[1724020839565,0.0511668,145.23,145.22,7.4]
[1724020840268,0.0511668,145.23,145.22,10.8422]
[1724020843569,3.4414,145.26,145.23,3.4419]
[1724020843774,3.4414,145.26,145.25,7.4]
[1724020844368,3.4414,145.26,145.23,3.4419]
[1724020844369,3.4414,145.26,145.23,10.8419]
[1724020844566,3.4414,145.26,145.23,10.8942522]
[1724020844567,3.49231863,145.26,145.23,10.8942522]
[1724020845570,3.4415,145.25,145.23,10.8942522]
[1724020845775,3.4415,145.25,145.23,7.4523522]
[1724020856779,0.05091863,145.26,145.23,0.0523522]
[1724020857782,3.4417,145.24,145.23,0.0523522]
[1724020858879,3.4423,145.22,145.15,1.3128]
[1724020859178,3.4423,145.22,145.18,7.4]
[1724020859783,3.4423,145.22,145.19,3.4428]
[1724020859980,0.04791728,145.21,145.19,3.4954161]
[1724020860881,3.49041728,145.21,145.19,0.0526161]
[1724020861183,0.04791728,145.21,145.19,0.0526161]
[1724020861381,3.4427,145.2,145.19,0.0526161]
[1724020861984,3.4432,145.18,145.16,7.4]
[1724020863288,3.4432,145.18,145.16,7.44719238]
[1724020864893,3.4434,145.17,145.16,7.44719238]
[1724020865487,3.4434,145.17,145.16,0.04719238]
[1724020865787,0.04364093,145.18,145.16,7.44719238]
[1724020866990,3.48694093,145.18,145.16,7.44719238]
[1724020867187,0.04364093,145.18,145.16,7.44719238]
[1724020867395,0.04364093,145.18,145.16,0.04719238]
[1724020867789,3.4434,145.17,145.16,0.04719238]
[1724020872087,0.04364093,145.18,145.12,10.8445]
[1724020872288,0.04364093,145.18,145.12,7.4]
[1724020872788,7.4,145.17,145.11,68.74751131]
[1724020872989,7.4,145.14,145.07,7.4]
[1724020873191,7.4,145.14,145.06,1.24]
[1724020873192,3.4451,145.1,145.09,0.02320383]
[1724020873583,0.05230429,145.12,145.05,4.16]
[1724020873584,7.4,145.11,145.05,4.16]
[1724020873789,7.4,145.11,145.03,10.80728203]
[1724020873790,7.4,145.1,145.03,10.80728203]
[1724020874297,3.4458,145.07,145.04,10.8463]
[1724020874784,11.56,145.1,145.04,7.4]
[1724020874987,4.16,145.12,145.07,7.4]
[1724020875296,3.4445,145.13,145.1,7.4]
[1724020875590,3.4445,145.13,145.12,7.4]
[1724020875790,3.48985049,145.13,145.11,7.4]
[1724020877897,0.04535049,145.13,145.12,7.4]
[1724020878290,0.04535049,145.13,145.09,4.16]
[1724020878591,0.04535049,145.13,145.12,7.4]
[1724020878791,0.04535049,145.13,145.09,4.16]
[1724020878987,0.04535049,145.13,145.12,7.4]
[1724020879183,0.04535049,145.13,145.09,4.16]
[1724020879389,0.04535049,145.13,145.09,7.4]
[1724020879894,3.4448,145.11,145.09,7.4]
[1724020880287,0.04535049,145.13,145.1,7.4]
[1724020880491,0.04535049,145.13,145.07,1.2664]
[1724020880492,0.04535049,145.13,145.11,7.4]
[1724020881389,0.04535049,145.13,145.11,10.8448]
[1724020881595,0.04535049,145.13,145.11,7.4]
[1724020883596,0.04535049,145.13,145.11,10.8447]
[1724020889703,3.48975049,145.13,145.11,7.4]
[1724020890007,3.48975049,145.13,145.1,10.8449]
[1724020891902,3.4448,145.11,145.1,7.4]
[1724020892102,0.04535049,145.13,145.09,7.4]
[1724020892908,3.4447,145.12,145.09,10.8451]
[1724020893415,3.4448,145.11,145.09,10.8451]
[1724020893608,0.04535049,145.13,145.09,10.8451]
[1724020894300,3.4447,145.12,145.09,10.8451]
[1724020895213,0.04535049,145.13,145.09,7.4]
[1724020895406,0.04535049,145.13,145.1,7.4]
[1724020895603,3.48985049,145.13,145.1,10.845]
[1724020896406,3.4446,145.12,145.1,10.845]
[1724020897610,3.4448,145.11,145.08,7.4]
[1724020898115,3.4453,145.09,145.07,7.4]
[1724020898306,3.49746287,145.09,145.07,7.4]
[1724020898609,0.05216287,145.09,145.06,6.836]
[1724020898812,0.05216287,145.09,145.05,3.4461]
[1724020898813,3.4455,145.08,145.05,3.4461]
[1724020899208,3.4459,145.07,145.04,3.4464]
[1724020899808,3.4459,145.07,145.04,10.8464]
[1724020900808,0.05216287,145.09,145.04,10.8464]
[1724020900809,0.05216287,145.09,145.04,7.4]
[1724020901212,0.05216287,145.09,145.06,7.4]
[1724020901408,4.18,145.16,145.07,7.4]
[1724020901712,4.18,145.16,145.1,7.4]
[1724020902015,7.4,145.14,145.06,16.27620864]
[1724020902409,3.445,145.1,145.09,0.04888113]
[1724020907610,3.49254939,145.11,145.09,0.04888113]
[1724020907816,0.04764939,145.11,145.09,7.44888113]
[1724020908014,3.9512,145.18,145.09,7.44888113]
[1724020908015,3.9512,145.18,145.09,7.4]
[1724020908212,3.4441,145.15,145.13,7.4]
[1724020909007,3.49642316,145.15,145.13,7.44401882]
[1724020909507,3.4441,145.14,145.13,0.04401882]
[1724020912018,10.8441,145.14,145.13,0.04401882]
[1724020912214,3.4451,145.1,145.08,7.4]
[1724020913416,3.49412459,145.1,145.08,7.4434264]
[1724020913813,3.4453,145.09,145.08,7.4434264]
[1724020914014,0.04902459,145.1,145.08,7.4434264]
[1724020914921,3.49422459,145.1,145.08,7.4434264]
[1724020916622,0.04902459,145.1,145.08,7.4434264]
[1724020917329,0.04902459,145.1,145.09,7.4]
[1724020920919,0.04902459,145.1,145.09,10.8453]
[1724020925629,1.3119,145.18,145.09,7.4]
[1724020925828,7.4,145.21,145.14,7.4]
[1724020926133,11.58,145.21,145.14,7.4]
[1724020926928,11.58,145.21,145.16,0.0440173]
[1724020927133,0.04958238,145.19,145.16,0.0440173]
[1724020927629,3.4435,145.17,145.16,0.0440173]
[1724020935433,3.4445,145.13,145.1,15.005]
[1724020935627,3.4445,145.13,145.1,10.845]
[1724020935833,11.56,145.17,145.09,12.2022]
[1724020936232,11.56,145.17,145.09,7.4]
[1724020936537,0.04435045,145.14,145.12,0.04487956]
[1724020936732,3.4443,145.13,145.12,0.04487956]
[1724020938530,7.4,145.13,145.06,5.4284]
[1724020938840,11.56,145.13,145.06,1.2684]
[1724020939140,3.4454,145.09,145.06,1.2684]
[1724020939634,3.49838752,145.09,145.06,1.2684]
[1724020939831,3.49838752,145.09,145.06,4.7143]
[1724020940332,3.49838752,145.09,145.06,3.4459]
[1724020940537,3.4455,145.08,145.05,10.8461]
[1724020942428,3.4458,145.07,145.04,10.8464]
[1724020942839,3.4461,145.06,145.04,10.90962908]
[1724020943138,3.4461,145.06,145.04,7.4]
[1724020943935,3.4462,145.05,145.03,14.98178501]
[1724020944239,3.49828139,145.05,145.03,14.98178501]
[1724020945844,3.49828139,145.05,145.03,11.56]
[1724020946141,3.49828139,145.05,145.03,7.4]
[1724020951943,3.4465,145.04,145.03,7.4]
[1724020953341,0.05208139,145.05,145.0,3.4473]
[1724020953535,0.05208139,145.05,145.01,7.4]
[1724020953738,3.4469,145.03,145.01,7.4]
[1724020955447,0.05208139,145.05,144.97,4.16]
[1724020955637,0.05080979,145.02,144.99,7.4]
[1724020956139,0.05080979,145.02,144.95,3.8804]
[1724020956340,0.05080979,145.02,144.96,7.4]
[1724020956541,0.05080979,145.02,144.96,10.8482]
[1724020956847,7.4,145.01,144.91,20.54383418]
[1724020957146,3.4484,144.96,144.94,7.4]
[1724020957448,3.49811472,144.96,144.94,7.4]
[1724020957651,3.49811472,144.96,144.94,10.8488]
[1724020957652,0.04971472,144.96,144.94,10.8488]
[1724020958144,3.49811472,144.96,144.94,10.8488]
[1724020958337,0.04971472,144.96,144.93,3.449]
[1724020958546,0.04971472,144.96,144.94,7.4]
[1724020958950,0.04971472,144.96,144.94,10.8487]
[1724020959142,0.04971472,144.96,144.95,7.4]
[1724020959343,4.16,145.03,144.95,7.4]
[1724020959652,4.16,145.03,144.98,7.4]
[1724020959950,4.16,145.03,144.9,33.76]
[1724020959951,7.4,145.02,144.96,7.4]
[1724020960252,3.448,144.98,144.96,7.4]
[1724020960550,3.448,144.98,144.96,0.04673077]
[1724020960850,3.4477,144.99,144.97,7.4]
[1724020961051,0.0459131,145.0,144.98,7.4]
[1724020962053,0.0459131,145.0,144.98,10.8479]
[1724020963251,0.0459131,145.0,144.98,7.4]
[1724020964853,0.0459131,145.0,144.98,10.8477]
[1724020966251,3.4468,145.03,144.99,7.4]
[1724020966446,3.4468,145.03,145.01,7.4]
[1724020967353,3.49772628,145.03,145.01,7.44654869]
[1724020967942,3.4469,145.02,145.01,0.04654869]
[1724020976549,3.4479,144.99,144.95,11.2337]
[1724020976954,7.4,145.02,144.96,3.4483]
[1724020977157,3.4479,144.98,144.95,11.2337]
[1724020977656,3.49867072,144.98,144.95,11.28216631]
[1724020978560,3.49867072,144.98,144.95,14.73056631]
[1724020982357,0.05077072,144.98,144.95,11.28216631]
[1724020982655,0.05077072,144.98,144.97,7.4]
[1724020982861,0.05077072,144.98,144.97,10.8481]
[1724020984272,0.05077072,144.98,144.97,7.4]
[1724020985468,0.05077072,144.98,144.97,10.8481]
[1724020986274,0.05077072,144.98,144.95,12.22756631]
[1724020986769,3.49877072,144.98,144.95,12.22756631]
[1724020987274,3.4482,144.97,144.95,12.22756631]
[1724020987576,0.05077072,144.98,144.95,0.04846631]
[1724020987777,0.05077072,144.98,144.91,2.5886]
[1724020987975,3.4488,144.94,144.91,9.9886]
[1724020988772,3.49539227,144.94,144.91,13.438]
[1724020990079,3.4491,144.93,144.91,9.9886]
[1724020990270,0.04659227,144.94,144.9,4.18]
[1724020990470,0.04659227,144.94,144.89,8.7234]
[1724020990674,3.4495,144.92,144.89,12.1733]
[1724020991678,3.4492,144.93,144.91,7.4]
[1724020993571,3.4492,144.93,144.91,10.8495]
[1724020993773,0.04659227,144.94,144.92,7.4]
[1724020994372,1.3159,145.02,144.92,7.4]
[1724020994573,4.18,145.01,144.97,7.4]
[1724020994878,3.4479,144.99,144.97,7.4]
[1724020995274,1.2434,145.04,144.97,7.4]
[1724020995477,3.4476,145.0,144.99,0.04960905]
[1724020995780,3.4476,145.0,144.99,7.44960905]
[1724020995969,0.05031226,145.02,144.99,7.44960905]
[1724020996173,0.05031226,145.02,145.0,7.4]
[1724020996373,0.05031226,145.02,144.99,0.04960905]
[1724020996572,0.05031226,145.02,144.99,7.44960905]
[1724020996769,3.4474,145.01,144.99,7.44960905]
[1724020996979,0.05031226,145.02,144.99,0.04960905]
[1724020997374,3.4474,145.0,144.99,0.04960905]
[1724020999180,3.4473,145.01,144.99,0.04960905]
[1724020999572,3.4473,145.01,144.99,7.44960905]
[1724021000078,0.05031226,145.02,144.99,7.44960905]
[1724021000278,0.05031226,145.02,145.0,7.4]
[1724021001782,0.05031226,145.02,145.0,10.8474]
[1724021002978,3.49731226,145.02,145.0,10.8474]
[1724021003185,3.49731226,145.02,145.0,7.4]
[1724021004678,0.05031226,145.02,145.0,10.8473]
[1724021005987,3.49731226,145.02,145.0,7.4]
[1724021006576,3.4472,145.01,144.99,0.04960905]
[1724021007884,3.4472,145.01,144.99,3.49720905]
[1724021008381,3.4472,145.01,144.99,0.04960905]
[1724021008986,3.4474,145.0,144.99,0.04960905]
[1724021012185,3.4473,145.01,144.99,0.04960905]
[1724021012383,3.4473,145.01,144.99,7.44960905]
[1724021015990,3.4474,145.0,144.99,0.04960905]
[1724021017985,3.49741226,145.02,144.99,7.44960905]
[1724021018887,3.49741226,145.02,144.99,10.89710905]
[1724021021092,3.49741226,145.02,145.0,3.4474]
[1724021021093,0.05031226,145.02,145.0,3.4474]
[1724021021289,0.05031226,145.02,145.01,7.4]
[1724021023795,3.49721226,145.02,145.01,7.4]
[1724021024088,0.05031226,145.02,144.99,0.04960905]
[1724021024394,3.4473,145.01,144.99,0.04960905]
[1724021024985,3.49731226,145.02,144.99,3.49720905]
[1724021025187,0.05031226,145.02,144.99,0.04960905]
[1724021025594,3.4473,145.01,144.99,0.04960905]
[1724021027391,3.4473,145.01,144.99,3.49720905]
[1724021028097,3.49731226,145.02,145.0,7.4]
[1724021028286,3.49731226,145.02,145.0,10.8474]
[1724021031594,0.05031226,145.02,145.0,10.8474]
[1724021032092,0.05031226,145.02,145.01,3.4472]
[1724021032292,0.05031226,145.02,145.01,10.8472]
[1724021032497,4.18,145.07,145.01,7.4]
[1724021032806,4.18,145.11,145.05,7.4]
[1724021032996,4.18,145.11,145.06,7.4]
[1724021033195,3.4456,145.08,145.06,7.4]
[1724021033592,3.49702565,145.08,145.06,7.44630269]
[1724021033796,0.05142565,145.08,145.06,10.89210269]
[1724021034597,3.49692565,145.08,145.06,10.89210269]
[1724021035691,0.05142565,145.08,145.06,10.89210269]
[1724021036996,0.05142565,145.08,145.07,10.8457]
[1724021037302,69.83907889,145.14,145.07,7.4]
[1724021037503,69.83907889,145.14,145.09,7.4]
[1724021038301,0.05058359,145.13,145.1,0.04774465]
[1724021038698,3.4449,145.11,145.1,0.04774465]
[1724021042006,3.4453,145.09,145.05,1.2842]
[1724021042198,3.4453,145.09,145.07,7.4]
[1724021042999,3.4455,145.09,145.05,5.4442]
[1724021043202,0.04748949,145.09,145.07,0.04978851]
[1724021043705,3.4457,145.08,145.07,0.04978851]
[1724021048501,3.4462,145.06,145.03,11.56]
[1724021049404,3.4462,145.06,145.03,15.0067]
[1724021049607,3.4990162,145.06,145.03,15.05815782]
[1724021051004,0.0528162,145.06,145.03,11.61145782]
[1724021052509,3.4989162,145.06,145.03,15.05805782]
[1724021053111,0.0528162,145.06,145.05,10.8462]
[1724021053408,0.0528162,145.06,145.05,7.4]
[1724021053809,3.4988162,145.06,145.05,7.4]
[1724021058413,3.4463,145.05,145.03,7.45145782]
[1724021058814,0.0528162,145.06,145.03,0.05145782]
[1724021059006,3.4465,145.04,145.03,0.05145782]
[1724021065112,3.40217381,145.05,144.99,7.4]
[1724021065510,4.71127381,145.05,144.99,7.4]
[1724021065712,7.4,145.04,144.97,10.8479]
[1724021066111,3.4473,145.01,144.97,10.8479]
[1724021066311,3.4473,145.01,144.99,7.4]
[1724021068016,3.4473,145.01,144.98,3.4477]
[1724021068320,3.4473,145.01,144.98,10.8477]
[1724021068519,3.49076772,145.02,145.0,7.4]
[1724021070020,3.4472,145.01,145.0,7.4]
[1724021077231,3.4472,145.01,144.98,10.8477]
[1724021078331,3.4475,145.0,144.98,10.8477]
[1724021082526,3.4474,145.01,144.96,2.5635]
[1724021082723,0.04366772,145.02,144.96,7.4]
[1724021082724,7.44366772,145.02,144.96,7.4]
[1724021082927,11.60366772,145.02,144.96,7.4]